Cogmind - Beta 16.1 @@@ ROGUE MODE // 2026.03.31 @ 17:12:36 Player: JuustuToug Result: Destroyed by Explosive Trap Performance ------------- Evolutions (0) 0 Regions Visited (2) 400 Robots Destroyed (34) 170 Value Destroyed (805) 805 Prototype IDs (0) 0 Alien Tech Used (0) 0 Bonus (0) 0 TOTAL SCORE: 1375 Bonus ------- None Cogmind --------- Core Integrity 0/250 Matter 300/300 Energy 246/250 System Corruption 0% Temperature Cool (2) Movement Walking (260) Ox2 Location -10/Mines Parts ------- > --- POWER (1) -------- Ion Engine > --- PROPULSION (2) --- Aluminum Leg Aluminum Leg > --- UTILITY (2) ------ High-capacity Storage Unit Seismic Detector > --- WEAPON (2) ------- Medium Laser Small Laser > --- INVENTORY (20) --- Ion Engine Light Treads Aluminum Leg Aluminum Leg Aluminum Leg Aluminum Leg Aluminum Leg Heat Sink Structural Scanner Signal Interpreter Light Armor Plating Light Armor Plating Light Armor Plating Hacking Suite Small Laser Small Laser Small Laser Light Assault Rifle Hammer Peak State ------------ > --- POWER ------------ Light Nuclear Core > --- PROPULSION ------- Aluminum Leg Aluminum Leg > --- UTILITY ---------- Heat Sink High-capacity Storage Unit > --- WEAPON ----------- Medium Laser Small Laser > --- INVENTORY -------- Ion Engine Light Ion Engine Aluminum Leg Aluminum Leg Structural Scanner Seismic Detector EM Pulse Gun Small Laser Small Laser Small Laser Light Assault Rifle [Rating: 10] Favorites ----------- Power Ion Engine Engine Ion Engine Power Core Light Nuclear Core Propulsion Aluminum Leg Treads Light Treads Leg Aluminum Leg Utility Seismic Detector Device Seismic Detector Storage High-capacity Storage Unit Weapon Medium Laser Energy Gun Medium Laser Ballistic Gun Assault Rifle Impact Weapon Hammer Build | -11 -10 -10 ------- Run | Yrd Mat Min Slots Evolved . | . . . Power . | . . . Propulsion . | . . . Utility . | . . . Weapon . | . . . Parts Attached 25 | 9 16 . Power 6 | 2 4 . Engine 5 | 2 3 . Core 1 | . 1 . Reactor . | . . . Propulsion 6 | 2 4 . Treads 2 | 2 . . Leg 4 | . 4 . Wheel . | . . . Hover . | . . . Flight . | . . . Utility 4 | 2 2 . Device 2 | 1 1 . Storage 2 | 1 1 . Processor . | . . . Hackware . | . . . Protection . | . . . Artifact . | . . . Weapon 9 | 3 6 . Energy Gun 6 | 2 4 . Energy Cannon . | . . . Ballistic Gun 2 | 1 1 . Ballistic Cannon . | . . . Launcher . | . . . Special Weapon . | . . . Impact Weapon 1 | . 1 . Slashing Weapon . | . . . Piercing Weapon . | . . . Special Melee Weapon . | . . . Unidentified Prototypes . | . . . Parts Lost 9 | . 9 . Power 3 | . 3 . Propulsion 3 | . 3 . Utility . | . . . Weapon 3 | . 3 . Highest Loss Streak 2 | . 2 . To Critical Strikes . | . . . Average Backups 11 | 1 11 20 Power 1 | . 1 1 Propulsion 2 | . 2 6 Utility 2 | . 2 8 Weapon 4 | . 5 5 Tool/Special . | . . . Unused Backups 21 | . 6 15 Power 3 | . 2 1 Propulsion 7 | . 1 6 Utility 8 | . 3 5 Weapon 3 | . . 3 Tool/Special . | . . . Average Slot Usage (%) 99 | . 99 100 Engine 8 | . 8 14 Core 5 | . 5 . Treads 4 | . 4 . Leg 23 | . 23 28 Device 14 | . 14 14 Storage 14 | . 14 14 Energy Gun 25 | . 24 28 Ballistic Gun 2 | . 2 . Peak Build Rating 10 | 7 10 9 Average Rating 8 | 5 8 9 On Entrance 5 | . 7 9 Avg Prop Armor Cover (%) . | . . . Naked Turns . | . . . Heaviest Build 50 | 14 50 49 Greatest Support 40 | 40 40 20 Greatest Overweight (x) 2 | . 2 2 Average Overweight (x) 1 | . 1 2 Largest Inventory Capacity 20 | 8 20 20 Average Capacity 17 | 7 17 20 Most Carried 20 | 2 20 20 Average Carried 11 | 1 11 20 Final Capacity 20 | 8 20 20 Final Carried 20 | 2 20 19 Class Distribution -------------------- 79% | Scavenger-Mutant 20% | Mutant Dominant Class ---------------- Scavenger-Mutant | -10/Materials Scavenger-Mutant | -10/Mines Resources | -11 -10 -10 ----------- Run | Yrd Mat Min Matter Collected 649 | 181 468 . Remotely . | . . . Salvage Created 1219 | 143 1076 . Parts 67 | 7 60 . Haulers Intercepted 1 | . 1 . Recyclers Shooed 2 | 1 1 . Parts Field Recycled . | . . . Retrieved Matter . | . . . Parts Self-Destructed . | . . . Prevented . | . . . Parts Restored . | . . . Kills | -11 -10 -10 ------- Run | Yrd Mat Min Combat Hostiles Destroyed 19 | . 19 . Guns 19 | . 19 . Classes Destroyed 8 | 2 6 . Worker 2 | . 2 . Builder 1 | . 1 . Tunneler 5 | 3 2 . Hauler 1 | . 1 . Recycler 2 | 1 1 . Operator 2 | . 2 . Watcher 2 | . 2 . Grunt 19 | . 19 . Best Kill Streak 4 | 4 4 . Combat Bots Only 4 | . 4 . Max Kills in Single Turn 2 | 1 2 . Gunslinging 1 | . 1 . Exploded . | . . . Melee . | . . . Uniques/NPCs Destroyed . | . . . Combat | -11 -10 -10 -------- Run | Yrd Mat Min Hostile Shots Fired 152 | . 152 . Missed 47 | . 47 . Hits 105 | . 105 . Projectile 105 | . 105 . Critical Strikes 2 | . 2 . Damage Taken 1394 | . 1341 53 Core 252 | . 212 40 Absorbed by Shields . | . . . Core Remaining (%) 100 | 100 . . Volleys Fired 126 | 12 114 . Largest 2 | 2 2 . Hottest 100 | 70 100 . Shots Fired 244 | 24 220 . Gun 244 | 24 220 . Cannon . | . . . Launcher . | . . . Special . | . . . Kinetic 44 | 12 32 . Thermal 200 | 12 188 . Explosive . | . . . Electromagnetic . | . . . Robot Hit Streak 11 | 9 11 . Robot Miss Streak 6 | 1 6 . Penetration Max . | . . . Secondary Targets 4 | . 4 . Max Gunslinging Chain 1 | . 1 . Shots Hit Robots 145 | 18 127 . Core Hits 63 | 6 57 . Critical Kills . | . . . Critical Parts Destroyed . | . . . Critical Strikes 8 | 4 4 . Burn 8 | 4 4 . Melee Attacks 2 | . 2 . Impact 2 | . 2 . Slashing . | . . . Piercing . | . . . Sneak Attacks . | . . . Combat Hostiles . | . . . Follow-up Attacks . | . . . Damage Inflicted 1766 | 184 1582 . Guns 1765 | 183 1582 . Cannons . | . . . Explosions . | . . . Melee . | . . . Ramming 1 | 1 . . Kinetic 275 | 71 204 . Thermal 1490 | 112 1378 . Explosive . | . . . Electromagnetic . | . . . Impact . | . . . Slashing . | . . . Piercing . | . . . Highest Corruption . | . . . Average Corruption . | . . . Corruption Purged . | . . . Corruption Blocked . | . . . Overload Shots . | . . . Overflow Damage . | . . . Projectiles . | . . . Explosions . | . . . Melee . | . . . Knockbacks . | . . . Impact . | . . . Kinetic . | . . . Secondary . | . . . Self-Inflicted Damage . | . . . Shots . | . . . Rammed 1 | 1 . . Targets Rammed 1 | 1 . . Kicked . | . . . Crushed . | . . . Highest Temperature 284 | 180 284 . Average Temperature 86 | 91 86 . Received Heat Transfer 726 | . 726 . Effects 2 | . 2 . Energy Bleed 2 | . 2 . Siege Activations . | . . . Martial Activations . | . . . Shielding Activations . | . . . Robots Disrupted . | . . . Combat Hostiles . | . . . Robots Corrupted . | . . . Combat Hostiles . | . . . Parts Fried . | . . . Impact Corruptions . | . . . Robots Melted . | . . . Combat Hostiles . | . . . Parts Melted 11 | 1 10 . Heat Transferred 4723 | 629 4094 . Parts Sabotaged . | . . . Parts Stolen . | . . . Parts Stripped . | . . . Power Chain Reactions . | . . . Alert | -11 -10 -10 ------- Run | Yrd Mat Min Maximum Alert Level . | . . . Low Security (%) 100 | 100 100 100 Level 1 . | . . . Level 2 . | . . . Level 3 . | . . . Level 4 . | . . . Level 5 . | . . . High Security . | . . . Max Security . | . . . Peak Influence 80 | 5 80 24 Initial 24 | . . 24 Average 21 | . 22 18 Influence Increases 572 | 20 552 . Destroy 0b10 Robot/C 380 | . 380 . Destroy 0b10 Robot/NC 75 | 20 55 . Destroy Leader 96 | . 96 . Successful Hack 17 | . 17 . Destroy Structure 4 | . 4 . Influence Decreases 568 | 20 488 60 Entered New Map 40 | . . 40 Time Decay 458 | 20 418 20 Lost Part 70 | . 70 . Squads Dispatched 6 | . 6 . Investigation 3 | . 3 . Extermination . | . . . Reinforcement 3 | . 3 . Assault . | . . . Garrison . | . . . Intercept . | . . . Searches Triggered . | . . . Construction Impeded . | . . . Haulers Reinforced . | . . . Active Scanning Responses . | . . . Cargo Convoy Interrupts . | . . . Stealth | -11 -10 -10 --------- Run | Yrd Mat Min Distress Signals 3 | . 3 . Communications Jammed . | . . . Distress Signals . | . . . Times Spotted 30 | . 30 . Peak Tracking Total 4 | . 4 . Tactical Retreats . | . . . Traps | -11 -10 -10 ------- Run | Yrd Mat Min Traps Triggered 3 | . 2 1 Indirectly . | . . . Trap Hack Attempts . | . . . Triggered . | . . . Disarmed . | . . . Reprogrammed . | . . . Reused . | . . . Traps Extracted . | . . . Installed . | . . . Triggered . | . . . Machines | -11 -10 -10 ---------- Run | Yrd Mat Min Machines Disabled . | . . . Max in Single Turn . | . . . Machines Repaired . | . . . Machines Dismantled . | . . . Machines Sabotaged . | . . . Overloaded Fab Kills . | . . . Hacking | -11 -10 -10 --------- Run | Yrd Mat Min Machines Accessed 5 | . 4 1 Terminals 4 | . 4 . Fabricators . | . . . Repair Stations . | . . . Recycling Units . | . . . Scanalyzers . | . . . Garrison Access . | . . . Total Hacks 14 | . 13 1 Successful 8 | . 7 1 Failed 6 | . 6 . Catastrophic . | . . . Database Lockouts . | . . . Manual 13 | . 13 . Terminals 13 | . 13 . Fabricators . | . . . Repair Stations . | . . . Recycling Units . | . . . Scanalyzers . | . . . Garrison Access . | . . . Terminal Hacks 1 | . . 1 Open Door 1 | . . 1 Fabricator Hacks . | . . . Repair Station Hacks . | . . . Recycling Unit Hacks . | . . . Scanalyzer . | . . . Garrison Access Hacks . | . . . Unauthorized Hacks 7 | . 7 . Terminals 7 | . 7 . Botnet 2 | . 2 . Operators 1 | . 1 . Skim 4 | . 4 . Fabricators . | . . . Repair Stations . | . . . Recycling Units . | . . . Scanalyzers . | . . . Garrison Access . | . . . Data Cores Recovered . | . . . Used . | . . . Hacking Detections 4 | . 4 . Full Trace Events . | . . . Feedback Events . | . . . Feedback Blocked . | . . . Robot Schematics Acquired . | . . . Robots Built . | . . . Authchips . | . . . Time . | . . . Total Robot Build Rating . | . . . Part Schematics Acquired . | . . . Parts Built . | . . . Authchips . | . . . Time . | . . . Total Part Build Rating . | . . . Part Studies Acquired . | . . . Parts Repaired . | . . . Time . | . . . Parts Recycled . | . . . Recycled Matter . | . . . Retrieved Matter . | . . . Retrieved Components . | . . . Parts Scanalyzed . | . . . Part Schematics Acquired . | . . . Parts Damaged . | . . . Bothacking | -11 -10 -10 ------------ Run | Yrd Mat Min Used RIF Installer . | . . . Robots Hacked . | . . . Non-combat . | . . . Combat . | . . . Robot Hacks Applied . | . . . Relay Couplers Released . | . . . Fabnet Peak Effective % . | . . . Robots Rewired . | . . . Allies Hacked . | . . . Hacks Repelled . | . . . Allies | -11 -10 -10 -------- Run | Yrd Mat Min Total Allies . | . . . Largest Group . | . . . Highest-Rated Group . | . . . Highest-Rated Ally . | . . . Total Orders . | . . . Ally Attacks . | . . . Total Damage . | . . . Kills . | . . . Allies Corrupted . | . . . Allies Melted . | . . . Intel | -11 -10 -10 ------- Run | Yrd Mat Min Active Infowar (turns) 2085 | 10 2034 41 Seismic 2085 | 10 2034 41 Robot Analysis Total . | . . . Derelict Logs Recovered . | . . . Drone Launches . | . . . Drone Recoveries . | . . . Exploration | -11 -10 -10 ------------- Run | Yrd Mat Min Turns Passed 2484 | 109 2334 41 Spaces Moved 836 | 38 783 15 Core 3 | 3 . . Treads 175 | 35 140 . Legs 658 | . 643 15 Wheels . | . . . Hover . | . . . Flight . | . . . Fastest Speed 50 | 50 120 260 Average Speed 231 | 151 234 260 Slowest Speed 260 | 160 260 260 Overloaded Moves . | . . . Propulsion Burnouts . | . . . Robots Hopped . | . . . Potential Cave-ins . | . . . Cave-ins Triggered . | . . . Exploration Rate (%) 35 | 3 96 7 Regions Visited 2 Branch Regions 1 Pre-discovered Areas . | . . . Known Exits Taken . | . . . Unknown Exits Taken 2 | 1 1 . Scrap Searched . | . . . Spaces Dug 2 | . 2 . Terrain Destroyed 2 | . 2 . Melee 2 | . 2 . Projectile . | . . . AOE . | . . . Terrain Rammed . | . . . Walls Destroyed . | . . . Machines Disabled . | . . . Actions | -11 -10 -10 --------- Run | Yrd Mat Min Total 1140 | 62 1058 20 Wait 87 | 1 82 4 Move 834 | 37 782 15 Hop . | . . . Pick Up 37 | 1 36 . Fast Attach 8 | 7 1 . Attach 8 | . 8 . Detach . | . . . Swap 23 | 3 20 . Drop 14 | . 13 1 Fire 126 | 12 114 . Melee 2 | . 2 . Ram . | . . . Kick . | . . . Crush 1 | 1 . . Escape Stasis . | . . . Rewire . | . . . Trap . | . . . Miscellaneous . | . . . Route ------- -11/Scrapyard -10/Materials (discovered 6 exits: [*Mat x3] / *Min x2 / [*Sub]) -10/Mines History --------- Turn | Location | Event 17 | -11/Scrapyard | Discovered new exit (range 16) 110 | -11/Scrapyard | Entered Materials 189 | -10/Materials | Discovered new exit (range 16) 318 | -10/Materials | Build established: Mutant 355 | -10/Materials | Discovered new exit (range 14) 498 | -10/Materials | Discovered new exit (range 11) 683 | -10/Materials | Discovered new exit (range 15) 710 | -10/Materials | Derelicts attacked the area 725 | -10/Materials | Discovered new exit (range 14) 808 | -10/Materials | Build established: Scavenger-Mutant 1541 | -10/Materials | Core integrity fell below 50% 1895 | -10/Materials | Discovered new exit (range 10) 2090 | -10/Materials | Core integrity fell below 20% 2444 | -10/Materials | Entered Mines 2471 | -10/Mines | Met a Derelict who couldn't figure out how to use a Trap Extractor 2485 | -10/Mines | Destroyed by Explosive Trap Last Messages --------------- GOAL=ESCAPE 02445_ K-01 Serf collects debris. 02470_ Connecting with SHOP.Sys... 02470_ Current location identified: Mines >>Open Door Sealed Doors opened. 02471_ UT-5XC(g): "So I found this thing but I have no idea how to use it. And who the hell trapped this place to begin with?!" 02471_ UT-5XC(g): "I give up! Here you try, I'm outta here before something nasty happens..." 02471_ Tosses Imp. Trap Extractor to the ground. 02485_ Dropped Heat Sink. 02485_ Triggered EMP Trap. 02485_ A bubble of electromagnetic force engulfs the area. 02485_ SHOP.Sys disabled. 02485_ Machine disabled. 02485_ Explosive Trap short circuited. 02485_ An explosion rips through the floor. Map ----- +----------------------------------------------------+ | ???????????????????????????????????? | | ???????????????????????????????????? | | ???????????????????????????????????? | | ???????????????????????????????????? | | ???????????????????????????????????? | | ???????????????????????????????????? | | ???????????????????????????????????? | | ???????????????????????????????????? | | ???????????????????????????????????? | | ???????????????????????????????????? | | ???????????????????????????????????? | | ???????????????????????????????????? | | ???????????????????????????????????? | | ???????????????????????????????????? | | ???????????????????????????????????? | | ???????????????????????????????????? | | ???????????????????????????????????? | | ???????????????????????????????????? | | ???????????????????????????????????? | | ???????????????????????? #?????????? | | ???????????????????????? #?????????? | | ????????########???##### ##????????? | | ????????# """"#???# #????????? | | ????????#/!=[= #???# """ #????????? | | ?????????# ! #????# """ #????????? | | ?????????#!@ /###??# """ #????????? | | ????????###! ## #### #????????? | | ????????# #????????? | | ????????# ### #????????? | | ????????# #?# #????????? | | ???????# #?# #????????? | | ??????# #?########????????? | | ??????# ##?????????????????? | | ??????## ## ###??????????????????? | | ???????##?#####????????????????????? | | ???????????????????????????????????? | | | | | | | | | | | | | | | | | | | | | | | | | | | | | +----------------------------------------------------+ Best States ------------- Heat Dissipation 35 Energy Generation 14 Energy Capacity 250 Matter Stores 300 Matter Capacity 300 Sight Range 16 Terrain Scan Density 10 Evasion (%) 55 Recoil Reduction 2 Item Schematics ----------------- None Robot Schematics ------------------ None Fabricated ------------ Nothing Repaired ---------- Nothing Studied --------- None Alien Tech Used ----------------- None Achievements -------------- None Challenges ------------ None Game ------ Seed CoilSkeletonLattice Manual? 0 Play Time 00:08:53 Cumulative 390.7 hours Start 2026.03.31 @ 16:53:53 End 2026.03.31 @ 17:12:36 Sessions 1 Manual Loads 0 Difficulty Rogue Special Mode None Game No. 243 Rogue 243 Adventurer 0 Explorer 0 Win Type - Total 16 Types 9/1/3/1/1/0/0/1/0/0 Lore% 93 Gallery% 81 Achievement% 70 Wizard Run 0 Options --------- Layout 1 ASCII 0 Keyboard 0 Movement Mouse Keybinds 0 Fullscreen 2 Font 32/SmallcapsGlow Map View 50x35 Zoom Use 0% Tactical HUD 1 Map Filters NONE Filters NONE Steam 1 RUN: d86bf8a9-cedd-4f3f-807b-eb7fd31557d5